Workbook

Sheet Cover

Sheet Parameters
C2: Parameters for deriving performance requirements
C3: Ideal Span Threshold | D3: 2 | E3: dB
C4: Impairment Span Threshold | D4: 4 | E4: dB
B7: Notes | C7: 1. Call function DerivingPerfReq()
C8: 2. If the ruls does not apply, or fails, -100dB or less will be returned
D9: -100 | E9: Not enough input
D10: -101 | E10: Input should be pairs
D11: -102 | E11: Too large span for impairment
D12: -103 | E12: After removal iteration, not enough input

Sheet PUSCH TBoMS
A1: PUSCH TBoMS | F1: 38.104 req | G1: 38.141 req | H1: China Telecom | J1: Nokia | L1: Huawei | N1: Ericsson | P1: Samsung | R1: Company 6 | T1: Company 7 | V1: Company 8 | X1: Company 9 | Z1: Company 10 | AB1: SPAN | AD1: AVERAGE
A2: TBoMS over | H2: Ideal | I2: Impairment | J2: Ideal | K2: Impairment | L2: Ideal | M2: Impairment | N2: Ideal | O2: Impairment | P2: Ideal | Q2: Impairment | R2: Ideal | S2: Impairment | T2: Ideal | U2: Impairment | V2: Ideal | W2: Impairment | X2: Ideal | Y2: Impairment | Z2: Ideal | AA2: Impairment | AB2: Ideal | AC2: Impairment | AD2: Ideal | AE2: Impairment
A3: 4 available slots | B3: 1T2R | C3: FDD 15kHz SCS | D3: TDLB100-400 Low | E3: PUSCH Mapping type A | F3: =DerivingPerfReq(H3:AA3) -> -2.3 | G3: =IF(F3>-100,F3+0.6,F3) -> -1.7 | H3: -7.1 | I3: -5.1 | J3: -4,37 | K3: -1,87 | L3: -4.53 | M3: -2.53 | N3: -4.35 | O3: -2.35 | P3: -3.9 | Q3: -1.9 | AB3: =MAX(H3,J3,L3,N3,P3,R3,T3,V3,X3,Z3)-MIN(H3,J3,L3,N3,P3,R3,T3,V3,X3,Z3) -> 3.2 | AC3: =MAX(I3,K3,M3,O3,Q3,S3,U3,W3,Y3,AA3)-MIN(I3,K3,M3,O3,Q3,S3,U3,W3,Y3,AA3) -> 3.2 | AD3: =AVERAGE(H3,J3,L3,N3,P3,R3,T3,V3,X3,Z3) -> -4.97 | AE3: =AVERAGE(I3,K3,M3,O3,Q3,S3,U3,W3,Y3,AA3) -> -2.97
E4: PUSCH Mapping type B | F4: -2.1 | G4: -1.5 | H4: -7.2 | I4: -5.2 | J4: -4,15 | K4: -1,65 | L4: -4.5 | M4: -2.5 | N4: -4.16 | O4: -2.16 | P4: -3.7 | Q4: -1.7 | AB4: =MAX(H4,J4,L4,N4,P4,R4,T4,V4,X4,Z4)-MIN(H4,J4,L4,N4,P4,R4,T4,V4,X4,Z4) -> 3.5 | AC4: 3.5 | AD4: =AVERAGE(H4,J4,L4,N4,P4,R4,T4,V4,X4,Z4) -> -4.89 | AE4: -2.89
A5: 2 available slots | C5: TDD 15kHz SCS | E5: PUSCH Mapping type A | F5: -2.5 | G5: =IF(F5>-100,F5+0.6,F5) -> -1.9 | H5: -5.6 | I5: -3.6 | J5: -4,52 | K5: -2,02 | L5: -4.46 | M5: -2.46 | N5: -4.16 | O5: -2.16 | P5: -3.8 | Q5: -1.8 | AB5: =MAX(H5,J5,L5,N5,P5,R5,T5,V5,X5,Z5)-MIN(H5,J5,L5,N5,P5,R5,T5,V5,X5,Z5) -> 1.8 | AC5: =MAX(I5,K5,M5,O5,Q5,S5,U5,W5,Y5,AA5)-MIN(I5,K5,M5,O5,Q5,S5,U5,W5,Y5,AA5) -> 1.8 | AD5: =AVERAGE(H5,J5,L5,N5,P5,R5,T5,V5,X5,Z5) -> -4.505 | AE5: =AVERAGE(I5,K5,M5,O5,Q5,S5,U5,W5,Y5,AA5) -> -2.505
E6: PUSCH Mapping type B | F6: -2.5 | G6: -1.9 | H6: -5.7 | I6: -3.7 | J6: -4,38 | K6: -1,88 | L6: -4.41 | M6: -2.41 | N6: -4.09 | O6: -2.09 | P6: -3.7 | Q6: -1.7 | AB6: =MAX(H6,J6,L6,N6,P6,R6,T6,V6,X6,Z6)-MIN(H6,J6,L6,N6,P6,R6,T6,V6,X6,Z6) -> 2 | AC6: =MAX(I6,K6,M6,O6,Q6,S6,U6,W6,Y6,AA6)-MIN(I6,K6,M6,O6,Q6,S6,U6,W6,Y6,AA6) -> 2 | AD6: =AVERAGE(H6,J6,L6,N6,P6,R6,T6,V6,X6,Z6) -> -4.475 | AE6: =AVERAGE(I6,K6,M6,O6,Q6,S6,U6,W6,Y6,AA6) -> -2.475
A7: 4 available slots | C7: FDD 30kHz SCS | E7: PUSCH Mapping type A | F7: -2.4 | G7: -1.8 | H7: -6.8 | I7: -4.8 | J7: -4,38 | K7: -1,88 | L7: -4.52 | M7: -2.52 | N7: -4.47 | O7: -2.47 | P7: -4.3 | Q7: -2.3 | AB7: =MAX(H7,J7,L7,N7,P7,R7,T7,V7,X7,Z7)-MIN(H7,J7,L7,N7,P7,R7,T7,V7,X7,Z7) -> 2.5 | AC7: =MAX(I7,K7,M7,O7,Q7,S7,U7,W7,Y7,AA7)-MIN(I7,K7,M7,O7,Q7,S7,U7,W7,Y7,AA7) -> 2.5 | AD7: =AVERAGE(H7,J7,L7,N7,P7,R7,T7,V7,X7,Z7) -> -5.0225 | AE7: =AVERAGE(I7,K7,M7,O7,Q7,S7,U7,W7,Y7,AA7) -> -3.0225
E8: PUSCH Mapping type B | F8: -2.4 | G8: -1.8 | H8: -7.1 | I8: -5.1 | J8: -4,36 | K8: -1,86 | L8: -4.48 | M8: -2.48 | N8: -4.43 | O8: -2.43 | P8: -4.3 | Q8: -2.3 | AB8: =MAX(H8,J8,L8,N8,P8,R8,T8,V8,X8,Z8)-MIN(H8,J8,L8,N8,P8,R8,T8,V8,X8,Z8) -> 2.8 | AC8: =MAX(I8,K8,M8,O8,Q8,S8,U8,W8,Y8,AA8)-MIN(I8,K8,M8,O8,Q8,S8,U8,W8,Y8,AA8) -> 2.8 | AD8: =AVERAGE(H8,J8,L8,N8,P8,R8,T8,V8,X8,Z8) -> -5.0775 | AE8: =AVERAGE(I8,K8,M8,O8,Q8,S8,U8,W8,Y8,AA8) -> -3.0775
A9: 2 available slots | C9: TDD 30kHz SCS | E9: PUSCH Mapping type A | F9: -2.5 | G9: =IF(F9>-100,F9+0.6,F9) -> -1.9 | H9: -5.4 | I9: -3.4 | J9: -4,30 | K9: -1,80 | L9: -4.27 | M9: -2.27 | N9: -4.32 | O9: -2.32 | P9: -4.2 | Q9: -2.2 | AB9: =MAX(H9,J9,L9,N9,P9,R9,T9,V9,X9,Z9)-MIN(H9,J9,L9,N9,P9,R9,T9,V9,X9,Z9) -> 1.2 | AC9: =MAX(I9,K9,M9,O9,Q9,S9,U9,W9,Y9,AA9)-MIN(I9,K9,M9,O9,Q9,S9,U9,W9,Y9,AA9) -> 1.2 | AD9: =AVERAGE(H9,J9,L9,N9,P9,R9,T9,V9,X9,Z9) -> -4.5475 | AE9: =AVERAGE(I9,K9,M9,O9,Q9,S9,U9,W9,Y9,AA9) -> -2.5475
E10: PUSCH Mapping type B | F10: -2.5 | G10: -1.9 | H10: -5.5 | I10: -3.5 | J10: -4,26 | K10: -1,76 | L10: -4.24 | M10: -2.24 | N10: -4.3 | O10: -2.3 | P10: -4.1 | Q10: -2.1 | AB10: =MAX(H10,J10,L10,N10,P10,R10,T10,V10,X10,Z10)-MIN(H10,J10,L10,N10,P10,R10,T10,V10,X10,Z10) -> 1.4 | AC10: =MAX(I10,K10,M10,O10,Q10,S10,U10,W10,Y10,AA10)-MIN(I10,K10,M10,O10,Q10,S10,U10,W10,Y10,AA10) -> 1.4 | AD10: =AVERAGE(H10,J10,L10,N10,P10,R10,T10,V10,X10,Z10) -> -4.535 | AE10: =AVERAGE(I10,K10,M10,O10,Q10,S10,U10,W10,Y10,AA10) -> -2.535
A11: 2 available slots | C11: TDD 60kHz SCS | D11: TDLA30-300 Low | E11: PUSCH Mapping type B | F11: -2.6 | G11: -2 | H11: -4.9 | I11: -2.9 | J11: -4,40 | K11: -1,30 | L11: -4.74 | M11: -2.74 | N11: -4.65 | O11: -2.15 | P11: -4.5 | Q11: -2.5 | AB11: =MAX(H11,J11,L11,N11,P11,R11,T11,V11,X11,Z11)-MIN(H11,J11,L11,N11,P11,R11,T11,V11,X11,Z11) -> 0.4 | AC11: =MAX(I11,K11,M11,O11,Q11,S11,U11,W11,Y11,AA11)-MIN(I11,K11,M11,O11,Q11,S11,U11,W11,Y11,AA11) -> 0.75 | AD11: =AVERAGE(H11,J11,L11,N11,P11,R11,T11,V11,X11,Z11) -> -4.6975 | AE11: =AVERAGE(I11,K11,M11,O11,Q11,S11,U11,W11,Y11,AA11) -> -2.5725
A12: 2 available slots | C12: TDD 120kHz SCS | E12: PUSCH Mapping type B | F12: -2.4 | G12: =IF(F12>-100,F12+0.6,F12) -> -1.8 | H12: -4.9 | I12: -2.9 | J12: -4,20 | K12: -1,10 | L12: -4.43 | M12: -2.43 | N12: -4.37 | O12: -1.87 | P12: -4.3 | Q12: -2.3 | AB12: =MAX(H12,J12,L12,N12,P12,R12,T12,V12,X12,Z12)-MIN(H12,J12,L12,N12,P12,R12,T12,V12,X12,Z12) -> 0.6 | AC12: =MAX(I12,K12,M12,O12,Q12,S12,U12,W12,Y12,AA12)-MIN(I12,K12,M12,O12,Q12,S12,U12,W12,Y12,AA12) -> 1.03 | AD12: =AVERAGE(H12,J12,L12,N12,P12,R12,T12,V12,X12,Z12) -> -4.5 | AE12: =AVERAGE(I12,K12,M12,O12,Q12,S12,U12,W12,Y12,AA12) -> -2.375

Sheet PUSCH JCE (1T2R)
A1: PUSCH JCE | F1: 38.104 req | G1: 38.141 req | H1: China Telecom | J1: Nokia | L1: Huawei | N1: Ericsson | P1: Samsung | R1: Company 6 | T1: Company 7 | V1: Company 8 | X1: Company 9 | Z1: Company 10 | AB1: SPAN | AD1: AVERAGE
A2: JCE over | H2: Ideal | I2: Impairment | J2: Ideal | K2: Impairment | L2: Ideal | M2: Impairment | N2: Ideal | O2: Impairment | P2: Ideal | Q2: Impairment | R2: Ideal | S2: Impairment | T2: Ideal | U2: Impairment | V2: Ideal | W2: Impairment | X2: Ideal | Y2: Impairment | Z2: Ideal | AA2: Impairment | AB2: Ideal | AC2: Impairment | AD2: Ideal | AE2: Impairment
A3: 8 slots | B3: FDD 15kHz SCS 5MHz | C3: TDLA30-10 Low | D3: DMRS 1+0 | E3: PUSCH Mapping type A | F3: =DerivingPerfReq(H3:AA3) -> -7.9 | G3: =IF(F3>-100,F3+0.6,F3) -> -7.3 | H3: -9.5 | I3: -7.5 | J3: -9.37 | K3: -6.87 | L3: -11.38 | M3: -9.38 | N3: -12.1 | O3: -10.1 | P3: -11.2 | Q3: -9.2 | AB3: =MAX(H3,J3,L3,N3,P3,R3,T3,V3,X3,Z3)-MIN(H3,J3,L3,N3,P3,R3,T3,V3,X3,Z3) -> 2.73 | AC3: =MAX(I3,K3,M3,O3,Q3,S3,U3,W3,Y3,AA3)-MIN(I3,K3,M3,O3,Q3,S3,U3,W3,Y3,AA3) -> 3.23 | AD3: =AVERAGE(H3,J3,L3,N3,P3,R3,T3,V3,X3,Z3) -> -10.71 | AE3: =AVERAGE(I3,K3,M3,O3,Q3,S3,U3,W3,Y3,AA3) -> -8.61
E4: PUSCH Mapping type B | F4: -8.3 | G4: -7.7 | H4: -9.6 | I4: -7.6 | J4: -9.43 | K4: -6.93 | L4: -11.38 | M4: -9.38 | N4: -12.1 | O4: -10.1 | P4: -11.2 | Q4: -9.2 | AB4: 2.67 | AC4: 3.17 | AD4: -10.742 | AE4: -8.642
D5: DMRS 1+1 | E5: PUSCH Mapping type A | F5: -9.9 | G5: -9.3 | H5: -9.5 | I5: -7.5 | J5: -10.13 | K5: -7.63 | L5: -11.75 | M5: -9.75 | N5: -12.3 | O5: -10.3 | P5: -11.7 | Q5: -9.7 | AB5: 2.8 | AC5: 2.8 | AD5: -11.076 | AE5: -8.976
E6: PUSCH Mapping type B | F6: -9.9 | G6: -9.3 | H6: -9.5 | I6: -7.5 | J6: -10.12 | K6: -7.62 | L6: -11.74 | M6: -9.74 | N6: -12.3 | O6: -10.3 | P6: -11.6 | Q6: -9.6 | AB6: 2.8 | AC6: 2.8 | AD6: -11.052 | AE6: -8.952
A7: 2 slots | B7: TDD 15kHz SCS 5MHz | D7: DMRS 1+0 | E7: PUSCH Mapping type A | F7: -2.6 | G7: -2 | H7: -3.8 | I7: -1.8 | J7: -4.06 | K7: -1.56 | L7: -5.38 | M7: -3.38 | N7: -6.32 | O7: -4.32 | P7: -5.7 | Q7: -3.7 | AB7: 2.52 | AC7: 2.76 | AD7: -5.052 | AE7: -2.952
E8: PUSCH Mapping type B | F8: -2.6 | G8: -2 | H8: -3.9 | I8: -1.9 | J8: -4.08 | K8: -1.58 | L8: -5.37 | M8: -3.37 | N8: -6.32 | O8: -4.32 | P8: -5.7 | Q8: -3.7 | AB8: 2.42 | AC8: 2.74 | AD8: -5.074 | AE8: -2.974
D9: DMRS 1+1 | E9: PUSCH Mapping type A | F9: -3.6 | G9: -3 | H9: -4.4 | I9: -2.4 | J9: -4.58 | K9: -2.08 | L9: -5.78 | M9: -3.78 | N9: -6.47 | O9: -4.47 | P9: -6.1 | Q9: -4.1 | AB9: 2.07 | AC9: 2.39 | AD9: -5.466 | AE9: -3.366
E10: PUSCH Mapping type B | F10: -3.4 | G10: -2.8 | H10: -4.5 | I10: -2.5 | J10: -4.64 | K10: -2.14 | L10: -5.79 | M10: -3.79 | N10: -6.48 | O10: -4.48 | P10: -6.1 | Q10: -4.1 | AB10: 1.98 | AC10: 2.34 | AD10: -5.502 | AE10: -3.402
A11: 8 slots | B11: FDD 30kHz SCS 10MHz | D11: DMRS 1+0 | E11: PUSCH Mapping type A | F11: -9.8 | G11: -9.2 | H11: -9.9 | I11: -7.9 | J11: -10 | K11: -7.5 | L11: -11.57 | M11: -9.57 | N11: -12.1 | O11: -10.1 | P11: -11.6 | Q11: -9.6 | AB11: =MAX(H11,J11,L11,N11,P11,R11,T11,V11,X11,Z11)-MIN(H11,J11,L11,N11,P11,R11,T11,V11,X11,Z11) -> 2.2 | AC11: 2.6 | AD11: =AVERAGE(H11,J11,L11,N11,P11,R11,T11,V11,X11,Z11) -> -11.034 | AE11: -8.934
E12: PUSCH Mapping type B | F12: -9.8 | G12: -9.2 | H12: -9.9 | I12: -7.9 | J12: -10.01 | K12: -7.51 | L12: -11.55 | M12: -9.55 | N12: -12.1 | O12: -10.1 | P12: -11.6 | Q12: -9.6 | AB12: 2.2 | AC12: 2.59 | AD12: -11.032 | AE12: -8.932
D13: DMRS 1+1 | E13: PUSCH Mapping type A | F13: -9.5 | G13: -8.9 | H13: -10 | I13: -8 | J13: -10.66 | K13: -8.16 | L13: -11.72 | M13: -9.72 | N13: -12.1 | O13: -10.1 | P13: -12 | Q13: -10 | AB13: 2.1 | AC13: =MAX(I14,K13,M13,O13,Q13,S13,U13,W13,Y13,AA13)-MIN(I14,K13,M13,O13,Q13,S13,U13,W13,Y13,AA13) -> 2.1 | AD13: -11.296 | AE13: =AVERAGE(I14,K13,M13,O13,Q13,S13,U13,W13,Y13,AA13) -> -9.196
E14: PUSCH Mapping type B | F14: -9.5 | G14: -8.9 | H14: -10 | I14: -8 | J14: -10.62 | K14: -8.12 | L14: -11.71 | M14: -9.71 | N14: -12.1 | O14: -10.1 | P14: -12 | Q14: -10 | AB14: 2.1 | AC14: =MAX(H14,K14,M14,O14,Q14,S14,U14,W14,Y14,AA14)-MIN(H14,K14,M14,O14,Q14,S14,U14,W14,Y14,AA14) -> 1.98 | AD14: -11.286 | AE14: =AVERAGE(I14,K14,M14,O14,Q14,S14,U14,W14,Y14,AA14) -> -9.186
A15: 2 slots | B15: TDD 30kHz SCS 10MHz | D15: DMRS 1+0 | E15: PUSCH Mapping type A | F15: -2.9 | G15: -2.3 | H15: -4 | I15: -2 | J15: -4.47 | K15: -1.97 | L15: -5.66 | M15: -3.66 | N15: -6.74 | O15: -4.74 | P15: -5.8 | Q15: -3.8 | AB15: 2.74 | AC15: 2.77 | AD15: -5.334 | AE15: -3.234
E16: PUSCH Mapping type B | F16: -2.8 | G16: -2.2 | H16: -4 | I16: -2 | J16: -4.46 | K16: -1.96 | L16: -5.64 | M16: -3.64 | N16: -6.73 | O16: -4.73 | P16: -5.8 | Q16: -3.8 | AB16: 2.73 | AC16: 2.77 | AD16: -5.326 | AE16: -3.226
D17: DMRS 1+1 | E17: PUSCH Mapping type A | F17: -3.8 | G17: -3.2 | H17: -4.5 | I17: -2.5 | J17: -4.88 | K17: -2.38 | L17: -5.96 | M17: -3.96 | N17: -6.82 | O17: -4.82 | P17: -6.2 | Q17: -4.2 | AB17: 2.32 | AC17: 2.44 | AD17: -5.672 | AE17: -3.572
E18: PUSCH Mapping type B | F18: -3.3 | G18: -2.7 | H18: -4.7 | I18: -2.7 | J18: -4.86 | K18: -2.36 | L18: -5.97 | M18: -3.97 | N18: -6.82 | O18: -4.82 | P18: -6.2 | Q18: -4.2 | AB18: 2.12 | AC18: 2.46 | AD18: -5.71 | AE18: -3.61
A19: 2 slots | B19: TDD 60kHz SCS 50MHz | C19: TDLA30-75 Low | D19: DMRS 1+1 | E19: PUSCH Mapping type B | F19: =DerivingPerfReq(H19:AA19) -> -3.9 | G19: -3.3 | H19: -5.3 | I19: -3.3 | J19: -4.37 | K19: -1.27 | L19: -5.86 | M19: -3.86 | N19: -6.53 | O19: -4.03 | P19: -6.3 | Q19: -4.3 | AB19: 2.16 | AC19: 3.03 | AD19: =AVERAGE(H19,J19,L19,N19,P19,R19,T19,V19,X19,Z19) -> -5.672 | AE19: -3.352
B20: TDD 120kHz SCS 50MHz | D20: DMRS 1+1 | E20: PUSCH Mapping type B | F20: -3.5 | G20: -2.9 | H20: -5.7 | I20: -3.7 | J20: -4.94 | K20: -1.84 | L20: -5.95 | M20: -3.95 | N20: -6.58 | O20: -4.08 | P20: -6.1 | Q20: -4.1 | AB20: 1.64 | AC20: 2.26 | AD20: -5.854 | AE20: -3.534

Sheet PUSCH JCE (1T4R)
A1: PUSCH JCE | F1: 38.104 req | G1: 38.141 req | H1: China Telecom | J1: Nokia | L1: Huawei | N1: Ericsson | P1: Samsung | R1: Company 6 | T1: Company 7 | V1: Company 8 | X1: Company 9 | Z1: Company 10 | AB1: SPAN | AD1: AVERAGE
A2: JCE over | H2: Ideal | I2: Impairment | J2: Ideal | K2: Impairment | L2: Ideal | M2: Impairment | N2: Ideal | O2: Impairment | P2: Ideal | Q2: Impairment | R2: Ideal | S2: Impairment | T2: Ideal | U2: Impairment | V2: Ideal | W2: Impairment | X2: Ideal | Y2: Impairment | Z2: Ideal | AA2: Impairment | AB2: Ideal | AC2: Impairment | AD2: Ideal | AE2: Impairment
A3: 8 slots | B3: FDD 15kHz SCS 5MHz | C3: TDLA30-10 Low | D3: DMRS 1+0 | E3: PUSCH Mapping type A | F3: =DerivingPerfReq(H3:AA3) -> -11.8 | G3: =IF(F3>-100,F3+0.6,F3) -> -11.2 | H3: -13.5 | I3: -11.5 | J3: -13.08 | K3: -10.58 | L3: -14.8 | M3: -12.8 | N3: -15.9 | O3: -13.9 | P3: -14.5 | Q3: -12.5 | AB3: =MAX(H3,J3,L3,N3,P3,R3,T3,V3,X3,Z3)-MIN(H3,J3,L3,N3,P3,R3,T3,V3,X3,Z3) -> 2.82 | AC3: =MAX(I3,K3,M3,O3,Q3,S3,U3,W3,Y3,AA3)-MIN(I3,K3,M3,O3,Q3,S3,U3,W3,Y3,AA3) -> 3.32 | AD3: =AVERAGE(H3,J3,L3,N3,P3,R3,T3,V3,X3,Z3) -> -14.356 | AE3: =AVERAGE(I3,K3,M3,O3,Q3,S3,U3,W3,Y3,AA3) -> -12.256
E4: PUSCH Mapping type B | F4: -11.8 | G4: -11.2 | H4: -13.5 | I4: -11.5 | J4: -12.98 | K4: -10.48 | L4: -14.82 | M4: -12.82 | N4: -15.9 | O4: -13.9 | P4: -14.5 | Q4: -12.5 | AB4: 2.92 | AC4: 3.42 | AD4: -14.34 | AE4: -12.24
D5: DMRS 1+1 | E5: PUSCH Mapping type A | F5: -12.3 | G5: -11.7 | H5: -13.5 | I5: -11.5 | J5: -13.79 | K5: -11.29 | L5: -15.29 | M5: -13.29 | N5: -16.1 | O5: -14.1 | P5: -15 | Q5: -13 | AB5: 2.6 | AC5: 2.81 | AD5: -14.736 | AE5: -12.636
E6: PUSCH Mapping type B | F6: -12.3 | G6: -11.7 | H6: -13.5 | I6: -11.5 | J6: -13.72 | K6: -11.22 | L6: -15.29 | M6: -13.29 | N6: -16.1 | O6: -14.1 | P6: -15 | Q6: -13 | AB6: 2.6 | AC6: 2.88 | AD6: -14.722 | AE6: -12.622
A7: 2 slots | B7: TDD 15kHz SCS 5MHz | D7: DMRS 1+0 | E7: PUSCH Mapping type A | F7: =DerivingPerfReq(H7:AA7) -> -6.2 | G7: -5.6 | H7: -7.7 | I7: -5.7 | J7: -7.84 | K7: -5.34 | L7: -8.89 | M7: -6.89 | N7: -11.6 | O7: -9.6 | P7: -9 | Q7: -7 | AB7: =MAX(H7,J7,L7,N7,P7,R7,T7,V7,X7,Z7)-MIN(H7,J7,L7,N7,P7,R7,T7,V7,X7,Z7) -> 3.9 | AC7: 4.26 | AD7: =AVERAGE(H7,J7,L7,N7,P7,R7,T7,V7,X7,Z7) -> -9.006 | AE7: -6.906
E8: PUSCH Mapping type B | F8: -6.3 | G8: -5.7 | H8: -7.9 | I8: -5.9 | J8: -7.76 | K8: -5.26 | L8: -8.89 | M8: -6.89 | N8: -11.6 | O8: -9.6 | P8: -9 | Q8: -7 | AB8: 3.84 | AC8: 4.34 | AD8: -9.03 | AE8: -6.93
D9: DMRS 1+1 | E9: PUSCH Mapping type A | F9: -6.8 | G9: -6.2 | H9: -8.5 | I9: -6.5 | J9: -8.39 | K9: -5.89 | L9: -9.43 | M9: -7.43 | N9: -11.7 | O9: -9.7 | P9: -9.3 | Q9: -7.3 | AB9: 3.31 | AC9: 3.81 | AD9: -9.464 | AE9: -7.364
E10: PUSCH Mapping type B | F10: -6.8 | G10: -6.2 | H10: -8.6 | I10: -6.6 | J10: -8.32 | K10: -5.82 | L10: -9.43 | M10: -7.43 | N10: -11.7 | O10: -9.7 | P10: -9.3 | Q10: -7.3 | AB10: 3.38 | AC10: 3.88 | AD10: -9.47 | AE10: -7.37
A11: 8 slots | B11: FDD 30kHz SCS 10MHz | D11: DMRS 1+0 | E11: PUSCH Mapping type A | F11: -13 | G11: -12.4 | H11: -13.9 | I11: -11.9 | J11: -13.31 | K11: -10.81 | L11: -15.42 | M11: -13.42 | N11: -15.9 | O11: -13.9 | P11: -14.7 | Q11: -12.7 | AB11: 2.59 | AC11: 3.09 | AD11: -14.646 | AE11: -12.546
E12: PUSCH Mapping type B | F12: -13.3 | G12: -12.7 | H12: -13.8 | I12: -11.8 | J12: -13.36 | K12: -10.86 | L12: -15.41 | M12: -13.41 | N12: -15.9 | O12: -13.9 | P12: -14.7 | Q12: -12.7 | AB12: 2.54 | AC12: 3.04 | AD12: -14.634 | AE12: -12.534
D13: DMRS 1+1 | E13: PUSCH Mapping type A | F13: -13.1 | G13: -12.5 | H13: -13.8 | I13: -11.8 | J13: -14.06 | K13: -11.56 | L13: -15.78 | M13: -13.78 | N13: -16 | O13: -14 | P13: -15 | Q13: -13 | AB13: 2.2 | AC13: 2.44 | AD13: -14.928 | AE13: -12.828
E14: PUSCH Mapping type B | F14: -13.1 | G14: -12.5 | H14: -13.7 | I14: -11.7 | J14: -14.11 | K14: -11.61 | L14: -15.75 | M14: -13.75 | N14: -16 | O14: -14 | P14: -15 | Q14: -13 | AB14: 2.3 | AC14: 2.39 | AD14: -14.912 | AE14: -12.812
A15: 2 slots | B15: TDD 30kHz SCS 10MHz | D15: DMRS 1+0 | E15: PUSCH Mapping type A | F15: -6.5 | G15: -5.9 | H15: -7.9 | I15: -5.9 | J15: -8.01 | K15: -5.51 | L15: -9.02 | M15: -7.02 | N15: -9.18 | O15: -7.18 | P15: -9 | Q15: -7 | AB15: 1.28 | AC15: 1.67 | AD15: -8.622 | AE15: -6.522
E16: PUSCH Mapping type B | F16: -6.5 | G16: -5.9 | H16: -7.9 | I16: -5.9 | J16: -8.02 | K16: -5.52 | L16: -9.01 | M16: -7.01 | N16: -9.17 | O16: -7.17 | P16: -9 | Q16: -7 | AB16: 1.27 | AC16: 1.65 | AD16: -8.62 | AE16: -6.52
D17: DMRS 1+1 | E17: PUSCH Mapping type A | F17: -7 | G17: -6.4 | H17: -8.7 | I17: -6.7 | J17: -8.51 | K17: -6.01 | L17: -9.44 | M17: -7.44 | N17: -9.34 | O17: -7.34 | P17: -9.3 | Q17: -7.3 | AB17: 0.93 | AC17: 1.43 | AD17: -9.058 | AE17: -6.958
E18: PUSCH Mapping type B | F18: -7 | G18: -6.4 | H18: -8.7 | I18: -6.7 | J18: -8.52 | K18: -6.02 | L18: -9.44 | M18: -7.44 | N18: -9.34 | O18: -7.34 | P18: -9.3 | Q18: -7.3 | AB18: 0.92 | AC18: 1.42 | AD18: -9.06 | AE18: -6.96

Sheet PUSCH JCE (1T8R)
A1: PUSCH JCE | F1: 38.104 req | G1: 38.141 req | H1: China Telecom | J1: Nokia | L1: Huawei | N1: Ericsson | P1: Samsung | R1: Company 6 | T1: Company 7 | V1: Company 8 | X1: Company 9 | Z1: Company 10 | AB1: SPAN | AD1: AVERAGE
A2: JCE over | H2: Ideal | I2: Impairment | J2: Ideal | K2: Impairment | L2: Ideal | M2: Impairment | N2: Ideal | O2: Impairment | P2: Ideal | Q2: Impairment | R2: Ideal | S2: Impairment | T2: Ideal | U2: Impairment | V2: Ideal | W2: Impairment | X2: Ideal | Y2: Impairment | Z2: Ideal | AA2: Impairment | AB2: Ideal | AC2: Impairment | AD2: Ideal | AE2: Impairment
A3: 8 slots | B3: FDD 15kHz SCS 5MHz | C3: TDLA30-10 Low | D3: DMRS 1+0 | E3: PUSCH Mapping type A | F3: =DerivingPerfReq(H3:AA3) -> -15 | G3: =IF(F3>-100,F3+0.6,F3) -> -14.4 | H3: -16.6 | I3: -14.6 | J3: -15.92 | K3: -14.42 | L3: -17.78 | M3: -15.78 | N3: -19.5 | O3: -17.5 | P3: -17.3 | Q3: -15.3 | AB3: =MAX(H3,J3,L3,N3,P3,R3,T3,V3,X3,Z3)-MIN(H3,J3,L3,N3,P3,R3,T3,V3,X3,Z3) -> 3.58 | AC3: =MAX(I3,K3,M3,O3,Q3,S3,U3,W3,Y3,AA3)-MIN(I3,K3,M3,O3,Q3,S3,U3,W3,Y3,AA3) -> 3.08 | AD3: =AVERAGE(H3,J3,L3,N3,P3,R3,T3,V3,X3,Z3) -> -17.42 | AE3: =AVERAGE(I3,K3,M3,O3,Q3,S3,U3,W3,Y3,AA3) -> -15.52
E4: PUSCH Mapping type B | F4: -15 | G4: -14.4 | H4: -16.7 | I4: -14.7 | J4: -15.89 | K4: -14.39 | L4: -17.76 | M4: -15.76 | N4: -19.5 | O4: -17.5 | P4: -17.3 | Q4: -15.3 | AB4: 3.61 | AC4: =MAX(I4,K4,M4,O4,Q4,S4,U4,W4,Y4,AA4)-MIN(I4,K4,M4,O4,Q4,S4,U4,W4,Y4,AA4) -> 3.11 | AD4: -17.43 | AE4: =AVERAGE(#REF!,K4,M4,O4,Q4,S4,U4,W4,Y4,AA4) -> 
D5: DMRS 1+1 | E5: PUSCH Mapping type A | F5: -15.6 | G5: -15 | H5: -16.6 | I5: -14.6 | J5: -16.86 | K5: -15.36 | L5: -18.43 | M5: -16.43 | N5: -19.5 | O5: -17.5 | P5: -18.1 | Q5: -16.1 | AB5: 2.9 | AC5: 2.9 | AD5: -17.898 | AE5: -15.998
E6: PUSCH Mapping type B | F6: -15.6 | G6: -15 | H6: -16.7 | I6: -14.7 | J6: -16.84 | K6: -15.34 | L6: -18.43 | M6: -16.43 | N6: -19.5 | O6: -17.5 | P6: -18.1 | Q6: -16.1 | AB6: 2.8 | AC6: =MAX(I6,K6,M6,O6,Q6,S6,U6,W6,Y6,AA6)-MIN(I6,K6,M6,O6,Q6,S6,U6,W6,Y6,AA6) -> 2.8 | AD6: -17.914 | AE6: =AVERAGE(#REF!,K6,M6,O6,Q6,S6,U6,W6,Y6,AA6) -> 
A7: 2 slots | B7: TDD 15kHz SCS 5MHz | D7: DMRS 1+0 | E7: PUSCH Mapping type A | F7: -9.4 | G7: -8.8 | H7: -10.9 | I7: -8.9 | J7: -10.6 | K7: -9.1 | L7: -11.86 | M7: -9.86 | N7: -13.6 | O7: -11.6 | P7: -11.8 | Q7: -9.8 | AB7: 3 | AC7: 2.7 | AD7: -11.752 | AE7: -9.852
E8: PUSCH Mapping type B | F8: -9.4 | G8: -8.8 | H8: -10.9 | I8: -8.9 | J8: -10.64 | K8: -9.14 | L8: -11.88 | M8: -9.88 | N8: -13.6 | O8: -11.6 | P8: -11.8 | Q8: -9.8 | AB8: 2.96 | AC8: =MAX(I4,K8,M8,O8,Q8,S8,U8,W8,Y8,AA8)-MIN(I4,K8,M8,O8,Q8,S8,U8,W8,Y8,AA8) -> 5.56 | AD8: -11.764 | AE8: =AVERAGE(I4,K8,M8,O8,Q8,S8,U8,W8,Y8,AA8) -> -11.024
D9: DMRS 1+1 | E9: PUSCH Mapping type A | F9: -10.6 | G9: -10 | H9: -11.9 | I9: -9.9 | J9: -11.44 | K9: -9.94 | L9: -12.57 | M9: -10.57 | N9: -13.7 | O9: -11.7 | P9: -12.5 | Q9: -12.1 | AB9: 2.26 | AC9: 2.2 | AD9: -12.422 | AE9: -10.842
E10: PUSCH Mapping type B | F10: -10.6 | G10: -10 | H10: -11.9 | I10: -9.9 | J10: -11.45 | K10: -9.95 | L10: -12.56 | M10: -10.56 | N10: -13.7 | O10: -11.7 | P10: -12.5 | Q10: -12.1 | AB10: 2.25 | AC10: =MAX(I6,K10,M10,O10,Q10,S10,U10,W10,Y10,AA10)-MIN(I6,K10,M10,O10,Q10,S10,U10,W10,Y10,AA10) -> 4.75 | AD10: -12.422 | AE10: =AVERAGE(I6,K10,M10,O10,Q10,S10,U10,W10,Y10,AA10) -> -11.802
A11: 8 slots | B11: FDD 30kHz SCS 10MHz | D11: DMRS 1+0 | E11: PUSCH Mapping type A | F11: -15.3 | G11: -14.7 | H11: -16.9 | I11: -14.9 | J11: -16.15 | K11: -14.65 | L11: -18.12 | M11: -16.12 | N11: -17.4 | O11: -15.4 | P11: -17.4 | Q11: -15.4 | AB11: 1.97 | AC11: 1.47 | AD11: -17.194 | AE11: -15.294
E12: PUSCH Mapping type B | F12: -15.5 | G12: -14.9 | H12: -16.9 | I12: -14.9 | J12: -16.13 | K12: -14.63 | L12: -18.16 | M12: -16.16 | N12: -17.4 | O12: -15.4 | P12: -17.4 | Q12: -15.4 | AB12: 2.03 | AC12: 1.53 | AD12: -17.198 | AE12: -15.298
D13: DMRS 1+1 | E13: PUSCH Mapping type A | F13: -15.8 | G13: -15.2 | H13: -16.9 | I13: -14.9 | J13: -17.06 | K13: -15.56 | L13: -18.86 | M13: -16.86 | N13: -17.6 | O13: -15.6 | P13: -18.1 | Q13: -16.1 | AB13: 1.96 | AC13: 1.96 | AD13: -17.704 | AE13: -15.804
E14: PUSCH Mapping type B | F14: -15.8 | G14: -15.2 | H14: -16.9 | I14: -14.9 | J14: -17.01 | K14: -15.51 | L14: -18.83 | M14: -16.83 | N14: -17.6 | O14: -15.6 | P14: -18.1 | Q14: -16.1 | AB14: 1.93 | AC14: 1.93 | AD14: -17.688 | AE14: -15.788
A15: 2 slots | B15: TDD 30kHz SCS 10MHz | D15: DMRS 1+0 | E15: PUSCH Mapping type A | F15: -9.7 | G15: -9.1 | H15: -11 | I15: -9 | J15: -11 | K15: -9.5 | L15: -11.94 | M15: -9.94 | N15: -12.1 | O15: -10.1 | P15: -11.8 | Q15: -9.8 | AB15: 1.1 | AC15: 1.1 | AD15: -11.568 | AE15: -9.668
E16: PUSCH Mapping type B | F16: -9.7 | G16: -9.1 | H16: -11 | I16: -9 | J16: -10.99 | K16: -9.49 | L16: -11.93 | M16: -9.93 | N16: -12.1 | O16: -10.1 | P16: -11.8 | Q16: -9.8 | AB16: 1.11 | AC16: 1.1 | AD16: -11.564 | AE16: -9.664
D17: DMRS 1+1 | E17: PUSCH Mapping type A | F17: -10.3 | G17: -9.7 | H17: -11.8 | I17: -9.8 | J17: -11.68 | K17: -10.18 | L17: -12.54 | M17: -10.54 | N17: -12.4 | O17: -10.4 | P17: -12.4 | Q17: -10.4 | AB17: 0.86 | AC17: 0.74 | AD17: -12.164 | AE17: -10.264
E18: PUSCH Mapping type B | F18: -10.3 | G18: -9.7 | H18: -11.9 | I18: -9.9 | J18: -11.67 | K18: -10.17 | L18: -12.55 | M18: -10.55 | N18: -12.4 | O18: -10.4 | P18: -12.4 | Q18: -10.4 | AB18: 0.88 | AC18: 0.65 | AD18: -12.184 | AE18: -10.284

Sheet TBoMS simulation assumption
A1: Parameter | C1: Value
A2: Duplex mode | C2: FDD and TDD
A3: SCS | C3: 15/30 kHz for FR1 (TDD and FDD)
C4: 60/120 kHz for FR2 (TDD)
A5: Antenna | C5: 1T2R
A6: Channel Model | C6: TDLB100-400 Low for FR1
C7: TDLA30-300 Low for FR2
A8: TDD UL-DL pattern | C8: 7D1S2U, S=6D:4G:4U for 30kHz SCS
C9: 3D1S1U, S=10D:2G:2U for 15/60/120 kHz SCS
A10: PRB number | C10: 5 PRB
A11: PUSCH mapping type | C11: Type A and type B for FR1
C12: Type B for FR2
A13: MCS | C13: MCS 2
A14: Inter-slot frequency hopping | C14: Disabled
A15: Physical/available slots for TBoMS | C15: 4 for FDD
C16: 2 for TDD
A17: PUSCH repetition | C17: Disabled
A18: Transform precoding | C18: CP-OFDM
A19: HARQ | B19: Maximum number of HARQ transmissions | C19: 4
A20: DM-RS | B20: DM-RS configuration type | C20: 1
B21: DM-RS duration | C21: single-symbol DM-RS
B22: Additional DM-RS position | C22: pos1
B23: Number of DM-RS CDM group(s) without data | C23: 2
B24: Ratio of PUSCH EPRE to DM-RS EPRE | C24: -3 dB
B25: DM-RS port | C25: 0
B26: DM-RS sequence generation | C26: NID0=0, nSCID =0
A27: Time domain resource assignment | B27: Start symbol | C27: 0
B28: Allocation length | C28: 14 for FR1
C29: 10 for FR2
A30: PT-RS configuration | B30: Frequency density (KPT-RS) | C30: Disabled
B31: Time density (LPT-RS) | C31: Disabled
A32: Code block group based PUSCH transmission | C32: Disabled
A33: RV sequence | C33: [0 2 3 1]
A34: Test metric | C34: Test SNR at which the PUSCH achieves 70% of throughput

Sheet PUSCH JCE simulation assumption
A1: Parameter | C1: Value
A2: Duplex mode | C2: FDD and TDD
A3: SCS | C3: 15/30 kHz for FR1 (TDD and FDD)
C4: 60/120 kHz for FR2 (TDD)
A5: Antenna | C5: For FR1: 1T2R 1T4R 1T8R
C6: For FR2: 1T2R
A7: Channel Model | C7: TDLA30-10 for FR1
C8: TDLA30-75 for FR2
A9: TDD UL-DL pattern | C9: 7D1S2U, S=6D:4G:4U for 15/30kHz SCS
C10: DDSUU, S=10D:2G:2U for 60/120kHz SCS
A11: PRB number | C11: Full applicable test bandwidth for
C12: 5MHz for 15kHz SCS
C13: 10MHz for 30kHz SCS
C14: 50MHz for 60/120kHz SCS
C15: Interested companies can bring simulation results for the largest CHBW for each SCS.
A16: PUSCH mapping type | C16: Type A and type B for FR1
C17: Type B for FR2
A18: MCS | C18: MCS 4
A19: Inter-slot frequency hopping | C19: Disabled
A20: aTDW length (same with cTDW length) | C20: 2 for TDD
C21: 8 for FDD
A22: PUSCH repetition number | C22: 2 for TDD
C23: 8 for FDD
A24: Transform precoding | C24: CP-OFDM
A25: HARQ | B25: Maximum number of HARQ transmissions | C25: 4
B26: RV sequence | C26: [0 3 0 3] for TDD (repetition number = 2)
C27: [0 0 0 0] for FDD (repetition number = 8)
A28: DM-RS | B28: DM-RS configuration type | C28: 1
B29: DM-RS duration | C29: single-symbol DM-RS
B30: Additional DM-RS position | C30: For FR1: DMRS 1+1 and DMRS 1+0
C31: For FR2: DMRS 1+1
B32: Number of DM-RS CDM group(s) without data | C32: 2
B33: Ratio of PUSCH EPRE to DM-RS EPRE | C33: -3 dB
B34: DM-RS port | C34: 0
B35: DM-RS sequence generation | C35: NID0=0, nSCID =0
A36: Time domain resource assignment | B36: Start symbol | C36: 0
B37: Allocation length | C37: 14
A38: PT-RS configuration | B38: Frequency density (KPT-RS) | C38: Disabled
B39: Time density (LPT-RS) | C39: Disabled
A40: Code block group based PUSCH transmission | C40: Disabled
A41: phase and power offset | C41: Ideal
A42: CFO modelling | C42: N/A
A43: Test metric | C43: Test SNR at which the PUSCH achieves 70% of throughput
